fUST/lending_fUST_20260130
["ID","MTS","AMOUNT","RATE_DAILY","PERIOD"]
[404024637,1769741256081,-1154.67072121,0.00011026,2]
[404024638,1769741256102,-1154.67072121,0.00011026,2]
[404024639,1769741256123,-1154.67072121,0.00011026,2]
[404024640,1769741256144,-1154.67072121,0.00011026,2]
[404024641,1769741256165,-1154.67072121,0.00011026,2]
[404024642,1769741256349,-1154.67072113,0.00011026,2]
[404024643,1769741256374,-57212.72612421,0.00011027,2]
[404024689,1769741432425,-311.01509656,0.00011026,2]
[404024690,1769741432435,-575.0,0.00011026,2]
[404024691,1769741432445,-2372.45725889,0.00011027,2]
[404024692,1769741432479,-7555.25470451,0.00011027,2]
[404024693,1769741432491,-821.85039405,0.00011027,2]
[404024694,1769741432503,-18613.8979115,0.00011027,2]
[404024695,1769741432516,-1228.67557463,0.00011027,2]
[404024696,1769741432538,-1134.83860567,0.00011027,2]
[404024815,1769741438615,-1583.79013717,0.00011027,2]
[404024816,1769741438627,-29555.01940752,0.00011027,2]
[404024817,1769741438638,-1683.85927211,0.00011027,2]
[404024818,1769741438650,-1718.22322281,0.00011027,2]
[404024829,1769741441240,-3962.8164,0.00011027,2]
[404024830,1769741441293,-30187.05004529,0.00011027,2]
[404024831,1769741441348,-6471.32445422,0.00011027,2]
[404024849,1769741444799,-18.13089516,0.00011027,2]
[404024850,1769741445341,-2003.50008007,0.00011027,2]
[404024861,1769741446621,-7996.63544204,0.00011027,2]
[404024862,1769741446633,-589.32801206,0.00011027,2]
[404024863,1769741446675,-369.72,0.00011027,2]
[404024864,1769741447604,-18013.856065,0.00011027,2]
[404024865,1769741447887,-1898.981944,0.00011027,2]
[404024867,1769741619325,500.0,0.00034701,120]
[404024868,1769741619559,500.0,0.00034701,120]
[404024869,1769741619809,500.0,0.00034701,120]
[404024870,1769741620036,500.0,0.00034701,120]
[404024871,1769741620277,500.0,0.00034701,120]
[404024872,1769741620515,500.0,0.00034701,120]
[404024873,1769741620739,500.0,0.00034701,120]
[404024874,1769741620968,500.0,0.00034701,120]
[404024875,1769741621208,500.0,0.00034701,120]
[404024876,1769741621468,500.0808433,0.00034701,120]
[404024877,1769741724853,396.94822,0.00034701,120]
[404024883,1769742549127,-150.65,0.0001,2]
[404024884,1769742549167,-191.40522373,0.00010202,2]
[404024885,1769742549205,-359.344,0.00010708,2]
[404024886,1769742549245,-1105.03679319,0.00010799,2]
[404024927,1769742631612,-212.05642576,0.00010799,2]
[404024929,1769742631622,-572.0,0.00010799,2]
[404024931,1769742631632,-215.94357424,0.00010825,2]
[404025222,1769742637664,-84.05642576,0.00010825,2]
[404025223,1769742637674,-1200.0,0.00010825,2]
[404025224,1769742637683,-500.0,0.00010826,2]
[404025225,1769742637692,-500.0,0.00010826,2]
[404025226,1769742637702,-500.0,0.00010826,2]
[404025227,1769742637711,-500.0,0.00010826,2]
[404025228,1769742637720,-500.0,0.00010826,2]
[404025229,1769742637730,-500.0,0.00010826,2]
[404025230,1769742637739,-170.80506028,0.00010826,2]
[404025231,1769742637770,-286.84,0.00010826,2]
[404025248,1769742639990,-42.35493972,0.00010826,2]
[404025249,1769742640000,-500.0,0.00010826,2]
[404025250,1769742640010,-169.35215785,0.00010826,2]
[404025251,1769742640019,-500.0,0.00010826,2]
[404025252,1769742640028,-214.55667579,0.00010826,2]
[404025253,1769742640045,-285.44332421,0.00010826,2]
[404025254,1769742640054,-500.0,0.00010826,2]
[404025255,1769742640063,-243.55814075,0.00010826,2]
[404025271,1769742644003,-256.44185925,0.00010826,2]
[404025272,1769742644012,-500.0,0.00010826,2]
[404025273,1769742644022,-500.0,0.00010826,2]
[404025275,1769742644031,-508.93281293,0.00010826,2]
[404025276,1769742644040,-500.0,0.00010826,2]
[404025277,1769742644049,-500.0,0.00010826,2]
[404025278,1769742644058,-500.0,0.00010826,2]
[404025279,1769742644068,-500.0,0.00010826,2]
[404025280,1769742644077,-500.0,0.00010826,2]
[404025281,1769742644087,-500.0,0.00010826,2]
[404025282,1769742644096,-500.0,0.00010826,2]
[404025283,1769742644107,-500.0,0.00010826,2]
[404025284,1769742644124,-500.0,0.00010826,2]
[404025285,1769742644133,-500.0,0.00010826,2]
[404025286,1769742644143,-500.0,0.00010826,2]
[404025287,1769742644152,-500.0,0.00010826,2]
[404025288,1769742644161,-328251.19053534,0.00010827,2]
[404025291,1769742645917,-1127.52466661,0.00010827,2]
[404025305,1769743660370,2389.15023759,0.0003,120]
[404025307,1769743763155,-726.00566625,9.353e-05,2]
[404025308,1769743763176,-2901.11864234,9.353e-05,2]
[404025309,1769743763198,-191.33631718,9.511e-05,2]
[404025310,1769743763221,-300.0,9.669e-05,2]
[404025311,1769743763240,-5818.6849239,9.67e-05,2]
[404025312,1769743763261,-300.0,9.844e-05,2]
[404025313,1769743763282,-1200.0,9.844e-05,2]
[404025314,1769743763437,-220.70757586,9.845e-05,2]
[404025315,1769743763461,-881.94747313,9.845e-05,2]
[404025316,1769743763481,-162.18394798,9.845e-05,2]
[404025317,1769743763505,-300.0,0.00010041,2]
[404025318,1769743763528,-133.50733327,0.00010041,2]
[404025319,1769743820885,-166.49266673,0.00010041,2]
[404025347,1769743831681,-300.0,0.00010041,2]
[404025348,1769743831691,-300.0,0.00010041,2]
[404025349,1769743831700,-300.0,0.00010041,2]
[404025350,1769743831709,-300.0,0.00010041,2]
[404025351,1769743831719,-175.89904586,0.00010041,2]
[404025352,1769743831730,-124.10095414,0.00010041,2]
[404025353,1769743831739,-300.0,0.00010041,2]
[404025354,1769743831749,-300.0,0.00010041,2]
[404025355,1769743831758,-300.0,0.00010041,2]
[404025356,1769743831767,-300.0,0.00010041,2]
[404025357,1769743831776,-300.0,0.00010041,2]
[404025358,1769743831785,-240.37540698,0.00010041,2]
[404025509,1769743837879,-59.62459302,0.00010041,2]
[404025510,1769743837889,-300.0,0.00010041,2]
[404025511,1769743837900,-300.0,0.00010041,2]
[404025512,1769743837909,-561.0,0.00010041,2]
[404025513,1769743837918,-600.0,0.00010241,2]
[404025514,1769743837927,-153.63846756,0.00010363,2]
[404025515,1769743837939,-153.6608973,0.00010452,2]
[404025516,1769743837949,-154.26434479,0.00010452,2]
[404025517,1769743837960,-153.44787273,0.00010452,2]
[404025518,1769743837971,-154.08085894,0.00010452,2]
[404025519,1769743837981,-170.07001065,0.00010452,2]
[404025520,1769743837991,-853.7979737,0.00010528,2]
[404025521,1769743838000,-508.77317047,0.00010539,2]
[404025522,1769743838009,-1540.99100109,0.00010539,2]
[404025523,1769743838018,-252.74,0.000106,2]
[404025525,1769743838027,-500.0,0.00010624,2]
[404025526,1769743838036,-500.0,0.00010624,2]
[404025527,1769743838046,-500.0,0.00010624,2]
[404025528,1769743838055,-389.88142366,0.00010624,2]
[404025529,1769743838064,-500.0,0.00010624,2]
[404025530,1769743838073,-500.0,0.00010624,2]
[404025531,1769743838083,-268.76100254,0.00010624,2]
[404025532,1769743838092,-157.38886785,0.00010624,2]
[404025533,1769743838102,-500.0,0.00010624,2]
[404025534,1769743838111,-500.0,0.00010624,2]
[404025535,1769743838120,-276.76435874,0.00010624,2]
[404025536,1769743838129,-500.0,0.00010624,2]
[404025537,1769743838138,-500.0,0.00010624,2]
[404025538,1769743838148,-500.0,0.00010624,2]
[404025539,1769743838157,-500.0,0.00010624,2]
[404025540,1769743838167,-500.0,0.00010624,2]
[404025541,1769743838176,-87937.49882005,0.00010625,2]
[404025542,1769743838207,-284.54000002,0.00010625,2]
[404025543,1769743838218,-2060.46938158,0.00010625,2]
[404025544,1769743838229,-1496.92909725,0.00010625,2]
[404025553,1769743840118,-3034.06366344,0.00010625,2]
[404025554,1769743840130,-101719.36460087,0.00010625,2]
[404025555,1769743840142,-671.77936835,0.00010625,2]
[404025556,1769743840152,-13750.54849016,0.00010625,2]
[404025557,1769743840171,-18794.07172582,0.00010625,2]
[404025558,1769743840182,-1932.74865695,0.00010625,2]
[404025595,1769743846012,-1426.49927422,0.00010625,2]
[404025596,1769743846153,-2120.87425294,0.00010625,2]
[404025597,1769743846164,-48573.82859732,0.00010625,2]
[404025598,1769743846175,-335.67814789,0.00010625,2]
[404025599,1769743846211,-16239.99104046,0.00010625,2]
[404025610,1769743846487,-7778.05196821,0.00010625,2]
[404025611,1769743846525,-5063.34738575,0.00010625,2]
[404025612,1769743846535,-32306.68186744,0.00010625,2]
[404025631,1769744178833,5000.0,0.00034723,120]
[404025685,1769744794120,-636.64782448,9.143e-05,2]
[404025686,1769744794141,-229.36992737,9.284e-05,2]
[404025687,1769744794161,-552.0,9.426e-05,2]
[404025688,1769744794180,-150.25,0.0001,2]
[404025689,1769744794199,-504.17092246,0.00010463,2]
[404025721,1769745031876,-150.26,0.0001,2]
[404025722,1769745031885,-242.14627597,0.00010358,2]
[404025723,1769745031896,-57.85372403,0.00010358,2]
[404025724,1769745031907,-565.0,0.00010358,2]
[404025725,1769745031916,-224.78252882,0.00010482,2]
[404025726,1769745031926,-150.25,0.000105,2]
[404025727,1769745031935,-300.0,0.00010518,2]
[404025728,1769745031945,-1200.0,0.00010518,2]
[404025730,1769745031954,-359.344,0.00010524,2]
[404025731,1769745031963,-500.0,0.00010524,2]
[404025732,1769745031973,-500.0,0.00010524,2]
[404025733,1769745031982,-500.0,0.00010524,2]
[404025734,1769745031991,-500.0,0.00010524,2]
[404025735,1769745032000,-394.91001586,0.00010524,2]
[404025736,1769745032010,-474.30677806,0.00010524,2]
[404025737,1769745032019,-154.37825853,0.00010524,2]
[404025738,1769745032028,-151.33146782,0.00010563,2]
[404025739,1769745032038,-150.46226005,0.00010563,2]
[404025741,1769745032047,-150.701821,0.00010563,2]
[404025743,1769745032057,-150.31239523,0.00010563,2]
[404025744,1769745032068,-1823.7132755,0.00010621,2]
[404025745,1769745032077,-6621.2602634,0.00010621,2]
[404025746,1769745032087,-1308.2328122,0.00010621,2]
[404025747,1769745032096,-483.6829054,0.00010621,2]
[404025748,1769745032106,-155.51853748,0.000107,2]
[404025749,1769745032117,-152.30112325,0.000107,2]
[404025750,1769745032127,-150.41618425,0.000107,2]
[404025751,1769745032136,-151.26117724,0.000107,2]
[404025752,1769745032145,-156.12240345,0.00010835,2]
[404025753,1769745032156,-2000.0,0.00010835,2]
[404025754,1769745032165,-2000.0,0.00010835,2]
[404025755,1769745032175,-915.8,0.00010835,2]
[404025756,1769745032184,-187.78006525,0.00010835,2]
[404025757,1769745032194,-194.72792766,0.00010835,2]
[404025758,1769745032203,-201.93286099,0.00010835,2]
[404025759,1769745032213,-209.40437684,0.00010835,2]
[404025760,1769745032222,-217.15233878,0.00010835,2]
[404025761,1769745032231,-225.18697532,0.00010835,2]
[404025762,1769745032240,-233.51889341,0.00010835,2]
[404025763,1769745032249,-242.15909246,0.00010835,2]
[404025764,1769745032258,-251.11897888,0.00010835,2]
[404025765,1769745032268,-260.4103811,0.00010835,2]
[404025766,1769745032277,-270.0455652,0.00010835,2]
[404025767,1769745032286,-280.03725112,0.00010835,2]
[404025768,1769745032296,-290.39862941,0.00010835,2]
[404025769,1769745032305,-301.1433787,0.00010835,2]
[404025770,1769745032315,-151.13751778,0.00010837,2]
[404025771,1769745032324,-220.3231607,0.00010837,2]
[404025772,1769745032334,-150.19832814,0.00010837,2]
[404025773,1769745032343,-150.47665091,0.00010837,2]
[404025774,1769745032353,-300.0,0.00010837,2]
[404025775,1769745032362,-300.0,0.00010837,2]
[404025776,1769745032371,-300.0,0.00010837,2]
[404025777,1769745032381,-300.0,0.00010837,2]
[404025778,1769745032391,-300.0,0.00010837,2]
[404025779,1769745032400,-300.0,0.00010837,2]
[404025780,1769745032410,-300.0,0.00010837,2]
[404025781,1769745032420,-300.0,0.00010837,2]
[404025782,1769745032430,-300.0,0.00010837,2]
[404025783,1769745032439,-300.0,0.00010837,2]
[404025784,1769745032449,-300.0,0.00010837,2]
[404025785,1769745032458,-300.0,0.00010837,2]
[404025786,1769745032467,-92.12390261,0.00010837,2]
[404025787,1769745032479,-207.87609739,0.00010837,2]
[404025788,1769745032489,-300.0,0.00010837,2]
[404025789,1769745032498,-300.0,0.00010837,2]
[404025790,1769745032507,-600.0,0.00010837,2]
[404025791,1769745032516,-5.44010004,0.00010974,2]
[404025792,1769745032528,-144.85157916,0.00010974,2]
[404025793,1769745032537,-337.20508147,0.00011026,2]
[404025794,1769745032550,-167.97061726,0.00011026,2]
[404025796,1769745038062,-3823.1223194,0.00010617,2]
[404025797,1769745038071,-464.66802616,0.00011026,2]
[404025798,1769745038080,-2528.0240191,0.00011026,2]
[404025799,1769745038089,-150.25,0.000111,2]
[404025800,1769745038098,-150.85571884,0.00011111,2]
[404025801,1769745038106,-339.34458152,0.00011131,2]
[404025802,1769745038115,-656.12880978,0.00011443,2]
[404025803,1769745038126,-5709.38339831,0.00011443,2]
[404025804,1769745038135,-150.25,0.000116,2]
[404025805,1769745038144,-419.30979169,0.00011743,2]
[404025806,1769745038153,-419.31,0.00011817,2]
[404025807,1769745038163,-54.70780586,0.00011817,2]
[404025808,1769745038174,-106.56219414,0.00011817,2]
[404025809,1769745038183,-720.0,0.00011821,2]
[404025810,1769745038191,-173.61,0.00011821,2]
[404025811,1769745038200,-173.61,0.00011821,2]
[404025812,1769745038209,-173.61,0.00011821,2]
[404025813,1769745038218,-173.61,0.00011821,2]
[404025814,1769745038227,-173.61,0.00011821,2]
[404025815,1769745038237,-173.61,0.00011821,2]
[404025816,1769745038246,-173.62,0.00011821,2]
[404025817,1769745038255,-2323.75312814,0.00011841,2]
[404025818,1769745038265,-1499.36919126,0.00011841,2]
[404025819,1769745038274,-720.0,0.00011921,2]
[404025820,1769745038283,-1477.4028629,0.00012004,2]
[404025821,1769745038292,-150.25,0.000121,2]
[404025822,1769745038301,-329.6531374,0.00012312,2]
[404025823,1769745038311,-933.87,0.00012329,2]
[404025824,1769745038319,-778.22,0.00012329,2]
[404025825,1769745038328,-648.52,0.00012329,2]
[404025826,1769745038337,-540.43,0.00012329,2]
[404025827,1769745038346,-450.36,0.00012329,2]
[404025828,1769745038355,-375.3,0.00012329,2]
[404025829,1769745038364,-312.75,0.00012329,2]
[404025830,1769745038373,-260.63,0.00012329,2]
[404025831,1769745038382,-217.19,0.00012329,2]
[404025832,1769745038391,-265.24338401,0.00012482,2]
[404025833,1769745038400,-150.25,0.000126,2]
[404025834,1769745038409,-2154.305,0.00012687,2]
[404025835,1769745038418,-631.392,0.00012687,2]
[404025836,1769745038427,-780.0,0.000129,2]
[404025837,1769745038436,-378.71014232,0.00013048,2]
[404025838,1769745038445,-3823.1223194,0.00013065,2]
[404025839,1769745038454,-864.0,0.00013113,2]
[404025840,1769745038463,-150.25,0.000132,2]
[404025841,1769745038472,-150.069,0.00013266,2]
[404025842,1769745038481,-244.871,0.00013266,2]
[404025843,1769745038490,-232.924,0.00013266,2]
[404025844,1769745038499,-262.104,0.00013266,2]
[404025845,1769745038509,-268.127,0.00013266,2]
[404025846,1769745038518,-500.41302693,0.00013273,2]
[404025847,1769745038527,-500.0,0.00013273,2]
[404025848,1769745038536,-500.0,0.00013273,2]
[404025849,1769745038546,-500.53221398,0.00013273,2]
[404025850,1769745038557,-500.0,0.00013273,2]
[404025851,1769745038567,-501.30398043,0.00013273,2]
[404025852,1769745038576,-500.0,0.00013273,2]
[404025853,1769745038587,-501.21229095,0.00013273,2]
[404025854,1769745038596,-500.61810231,0.00013273,2]
[404025855,1769745038605,-500.42926129,0.00013273,2]
[404025856,1769745038614,-500.0,0.00013273,2]
[404025857,1769745038625,-500.0,0.00013273,2]
[404025858,1769745038634,-500.0,0.00013273,2]
[404025860,1769745038643,-500.0,0.00013273,2]
[404025861,1769745038653,-500.0,0.00013273,2]
[404025863,1769745038662,-502.98054822,0.00013273,2]
[404025864,1769745038674,-500.57921653,0.00013273,2]
[404025865,1769745038683,-500.60380458,0.00013273,2]
[404025866,1769745038693,-500.21047809,0.00013273,2]
[404025867,1769745038703,-504.81393243,0.00013273,2]
[404025868,1769745038712,-500.0,0.00013273,2]
[404025870,1769745038722,-504.36727375,0.00013273,2]
[404025871,1769745038732,-504.58587945,0.00013273,2]
[404025872,1769745038742,-501.52215443,0.00013273,2]
[404025873,1769745038751,-264.92283217,0.00013273,2]
[404025875,1769745038888,-320.39327364,0.00013273,2]
[404025876,1769745038898,-501.00416719,0.00013273,2]
[404025877,1769745038907,-500.84193602,0.00013273,2]
[404025878,1769745038917,-500.46486142,0.00013273,2]
[404025879,1769745038927,-506.01707851,0.00013273,2]
[404025880,1769745038938,-501.84108282,0.00013273,2]
[404025881,1769745038951,-500.0,0.00013273,2]
[404025882,1769745038962,-500.90147035,0.00013273,2]
[404025883,1769745038972,-500.52410142,0.00013273,2]
[404025884,1769745038981,-500.98228606,0.00013273,2]
[404025885,1769745038991,-501.0748173,0.00013273,2]
[404025886,1769745039000,-509.58347505,0.00013273,2]
[404025887,1769745039010,-500.5843316,0.00013273,2]
[404025888,1769745039019,-507.14889108,0.00013273,2]
[404025889,1769745039030,-500.38548006,0.00013273,2]
[404025890,1769745039040,-500.0,0.00013273,2]
[404025891,1769745039049,-500.78172484,0.00013273,2]
[404025892,1769745039059,-501.02853559,0.00013273,2]
[404025893,1769745039068,-500.42745581,0.00013273,2]
[404025894,1769745039077,-500.6294263,0.00013273,2]
[404025895,1769745039086,-501.55276249,0.00013273,2]
[404025896,1769745039096,-919.95749453,0.000135,2]
[404025897,1769745039105,-300.0,0.00013673,2]
[404025898,1769745039115,-500.0,0.00013698,2]
[404025899,1769745039125,-500.0,0.00013698,2]
[404025900,1769745039135,-506.84280019,0.00013698,2]
[404025901,1769745039145,-500.0,0.00013698,2]
[404025902,1769745039154,-500.0,0.00013698,2]
[404025903,1769745039164,-500.0,0.00013698,2]
[404025904,1769745039174,-500.0,0.00013698,2]
[404025905,1769745039183,-500.0,0.00013698,2]
[404025906,1769745039193,-500.0,0.00013698,2]
[404025907,1769745039203,-536.84962304,0.00013698,2]
[404025908,1769745039212,-500.0,0.00013698,2]
[404025909,1769745039222,-251.87452986,0.00013698,2]
[404025910,1769745039232,-500.0,0.00013698,2]
[404025911,1769745039243,-500.0,0.00013698,2]
[404025912,1769745039252,-605.57828548,0.00013698,2]
[404025913,1769745039260,-1002.16854797,0.00013698,2]
[404025914,1769745039270,-500.0,0.00013698,2]
[404025915,1769745039280,-511.71480165,0.00013698,2]
[404025916,1769745039291,-2107.950264,0.00013699,2]
[404025917,1769745039301,-1000.0,0.00013699,2]
[404025918,1769745039311,-500.0,0.00013699,2]
[404025919,1769745039321,-500.0,0.00013699,2]
[404025920,1769745039330,-150.16357316,0.00013699,2]
[404025921,1769745039339,-500.0,0.00013699,2]
[404025922,1769745039349,-500.0,0.00013699,2]
[404025923,1769745039358,-500.82078053,0.00013699,2]
[404025924,1769745039367,-500.0,0.00013699,2]
[404025925,1769745039377,-500.0,0.00013699,2]
[404025926,1769745039386,-151.0,0.00013699,2]
[404025927,1769745039395,-151.30445,0.00013699,2]
[404025928,1769745039406,-151.697065,0.00013699,2]
[404025929,1769745039420,-500.0,0.00013699,2]
[404025930,1769745039430,-167.44082356,0.00013699,2]
[404025931,1769745039440,-150.25,0.000137,2]
[404025932,1769745039450,-339.92501183,0.00013821,2]
[404025933,1769745039459,-1048.70592864,0.00013821,2]
[404025934,1769745039468,-505.92248654,0.00013821,2]
[404025935,1769745039479,-3.17437249,0.00013821,2]
[404025936,1769745039492,-496.82562751,0.00013821,2]
[404025937,1769745039501,-1000.0,0.00013821,2]
[404025938,1769745039511,-619.12998309,0.00013821,2]
[404025939,1769745039520,-508.26594532,0.00013821,2]
[404025940,1769745039530,-163.97,0.00014,2]
[404025941,1769745039539,-162.31,0.00014,2]
[404025942,1769745039549,-150.25,0.000142,2]
[404025943,1769745039560,-343.51062108,0.00014247,2]
[404025944,1769745039570,-1000.0,0.00014247,2]
[404025945,1769745039579,-1000.0,0.00014247,2]
[404025946,1769745039588,-1000.0,0.00014247,2]
[404025947,1769745039599,-500.57345168,0.00014247,2]
[404025948,1769745039608,-506.33300735,0.00014247,2]
[404025949,1769745039617,-3823.1223194,0.00014289,2]
[404025950,1769745039628,-357.67363046,0.00014368,2]
[404025951,1769745039637,-1000.0,0.00014424,2]
[404025952,1769745039647,-305.70423919,0.00014482,2]
[404025953,1769745039656,-160.0,0.00014732,2]
[404025954,1769745039669,-1041.66666667,0.00014732,2]
[404025955,1769745039679,-500.82126343,0.00014795,2]
[404025956,1769745039688,-1001.07051364,0.00014795,2]
[404025958,1769745039697,-500.77278858,0.00014795,2]
[404025959,1769745039706,-150.25,0.000148,2]
[404025960,1769745039716,-1423.482083,0.0001488,2]
[404025961,1769745039726,-1000.90157824,0.00015,7]
[404025962,1769745039735,-187.526844,0.00015068,2]
[404025963,1769745039744,-150.25,0.000153,2]
[404025964,1769745039754,-180.99,0.0001539,3]
[404025965,1769745039763,-542.99,0.0001539,3]
[404025966,1769745039772,-181.61,0.00015399,2]
[404025967,1769745039781,-15633.98959093,0.000154,2]
[404025968,1769745039791,-151.0,0.000154,2]
[404025969,1769745039801,-496.761573,0.000154,2]
[404025971,1769745039810,-496.761573,0.000154,2]
[404025972,1769745039820,-496.761573,0.000154,2]
[404025973,1769745039829,-496.761573,0.000154,2]
[404025974,1769745039839,-151.0,0.000154,2]
[404025975,1769745039848,-252.793794,0.000154,2]
[404025976,1769745039857,-252.793794,0.000154,2]
[404025977,1769745039867,-252.793794,0.000154,2]
[404025978,1769745039877,-252.793794,0.000154,2]
[404025979,1769745039887,-150.25,0.000158,2]
[404025980,1769745039896,-955.044656,0.00015858,5]
[404025981,1769745039905,-1000.0,0.00015866,2]
[404025982,1769745039915,-244.0,0.00015866,2]
[404025983,1769745039925,-150.25,0.000164,2]
[404025984,1769745039934,-151.0,0.00016438,2]
[404025985,1769745039944,-151.0,0.00016438,2]
[404025986,1769745039953,-151.0,0.00016438,2]
[404025987,1769745039962,-152.601762,0.00016438,2]
[404025988,1769745039971,-164.809879,0.00016438,7]
[404025989,1769745039980,-161.187535,0.00016438,2]
[404025990,1769745039990,-346.16509438,0.00016482,2]
[404025991,1769745039999,-361.98,0.0001676,3]
[404025992,1769745040009,-153.369952,0.0001676,2]
[404025994,1769745040017,-153.369952,0.0001676,2]
[404025995,1769745040027,-153.369952,0.0001676,2]
[404025996,1769745040035,-153.369952,0.0001676,2]
[404025997,1769745040045,-150.25,0.000169,2]
[404025998,1769745040054,-1000.0,0.00017453,2]
[404025999,1769745040063,-492.0,0.00017453,2]
[404026000,1769745040073,-44064.35366175,0.0001747,2]
[404026001,1769745040083,-151.0,0.0001747,2]
[404026002,1769745040093,-151.0,0.0001747,2]
[404026003,1769745040102,-496.761573,0.0001747,2]
[404026004,1769745040111,-496.761573,0.0001747,2]
[404026005,1769745040121,-496.761573,0.0001747,2]
[404026006,1769745040131,-496.761573,0.0001747,2]
[404026007,1769745040140,-151.0,0.0001747,2]
[404026008,1769745040150,-252.793794,0.0001747,2]
[404026009,1769745040159,-252.793794,0.0001747,2]
[404026010,1769745040168,-252.793794,0.0001747,2]
[404026011,1769745040178,-252.793794,0.0001747,2]
[404026012,1769745040188,-150.03280662,0.00017808,2]
[404026013,1769745040198,-163.97,0.000181,2]
[404026015,1769745040207,-162.31,0.000181,2]
[404026016,1769745040216,-599.6069297,0.00018301,2]
[404026018,1769745040226,-386.62594957,0.00018482,2]
[404026019,1769745040235,-303.10001603,0.000189,2]
[404026020,1769745040245,-10740.82692912,0.00018998,2]
[404026021,1769745040257,-801.13,0.00018998,2]
[404026022,1769745040268,-320.94854201,0.00018998,2]
[404026023,1769745040364,-150.538,0.00012687,2]
[404026024,1769745040373,-1623.32838417,0.00018998,2]
[404026035,1769745045004,-104236.3547059,0.00018998,2]
[404026036,1769745045015,-151.0,0.00018998,2]
[404026037,1769745045026,-151.0,0.00018998,2]
[404026038,1769745045036,-496.761573,0.00018998,2]
[404026039,1769745045047,-496.761573,0.00018998,2]
[404026040,1769745045056,-496.761573,0.00018998,2]
[404026041,1769745045067,-496.761573,0.00018998,2]
[404026042,1769745045078,-153.369952,0.00018998,2]
[404026043,1769745045088,-153.369952,0.00018998,2]
[404026044,1769745045100,-153.369952,0.00018998,2]
[404026045,1769745045110,-153.369952,0.00018998,2]
[404026046,1769745045119,-151.0,0.00018998,2]
[404026047,1769745045128,-252.793794,0.00018998,2]
[404026048,1769745045138,-252.793794,0.00018998,2]
[404026049,1769745045147,-252.793794,0.00018998,2]
[404026050,1769745045156,-252.793794,0.00018998,2]
[404026051,1769745045165,-303.10001603,0.00019089,2]
[404026052,1769745045174,-1270.2,0.00019178,2]
[404026053,1769745045183,-757.97,0.00019178,2]
[404026054,1769745045192,-1000.0,0.00019198,2]
[404026055,1769745045202,-791.0,0.00019198,2]
[404026056,1769745045211,-160.93,0.000192,2]
[404026057,1769745045220,-1826.07,0.000192,2]
[404026058,1769745045229,-303.1000166,0.00019278,2]
[404026059,1769745045238,-168.60888764,0.00019452,3]
[404026060,1769745045248,-1411.314998,0.000195,2]
[404026061,1769745045257,-246.97,0.000198,3]
[404026062,1769745045266,-2176.70208876,0.0002,5]
[404026063,1769745045276,-150.103899,0.0002,2]
[404026064,1769745045285,-1000.0,0.0002,2]
[404026065,1769745045294,-427.08680475,0.00020482,2]
[404026066,1769745045305,-2107.950264,0.00020548,2]
[404026067,1769745045314,-1391.48293036,0.0002061,2]
[404026068,1769745045324,-3000.0,0.00021,2]
[404026069,1769745045333,-277.85191582,0.00021,2]
[404026070,1769745045342,-18751.05997614,0.00021,2]
[404026071,1769745045352,-151.0,0.00021,2]
[404026072,1769745045362,-151.0,0.00021,2]
[404026073,1769745045371,-151.0,0.00021,2]
[404026074,1769745045380,-252.793794,0.00021,2]
[404026075,1769745045390,-252.793794,0.00021,2]
[404026076,1769745045399,-252.793794,0.00021,2]
[404026077,1769745045408,-252.793794,0.00021,2]
[404026078,1769745045417,-3000.0,0.0002101,2]
[404026079,1769745045427,-3000.0,0.0002102,2]